bitfinex/quotes_BTCUSD_20241020
["timestamp","ask_amount","ask_price","bid_price","bid_amount"]
[1729407460007,1.63981641,68320.0,68319.0,0.44037888]
[1729407460225,1.46938998,68320.0,68319.0,0.44037888]
[1729407460461,1.45002273,68320.0,68319.0,0.43537584]
[1729407468317,1.44613747,68320.0,68319.0,0.43537584]
[1729407472331,1.44613747,68320.0,68319.0,0.43702784]
[1729407472790,1.44613747,68320.0,68319.0,0.43202784]
[1729407473474,1.44613747,68320.0,68319.0,0.47740144]
[1729407474356,1.42113747,68320.0,68319.0,0.43202784]
[1729407474564,1.42113747,68320.0,68319.0,0.47746982]
[1729407477653,1.28839329,68320.0,68319.0,0.43202784]
[1729407477918,1.28839329,68320.0,68319.0,0.43002784]
[1729407478147,1.28839329,68320.0,68319.0,0.43202784]
[1729407479343,1.28839329,68320.0,68319.0,0.43002784]
[1729407481569,1.28839329,68320.0,68319.0,0.42502784]
[1729407481806,1.28839329,68320.0,68319.0,0.43002784]
[1729407482308,1.28839329,68320.0,68319.0,0.40702784]
[1729407484983,1.27425765,68320.0,68319.0,0.40702784]
[1729407485205,1.26501661,68320.0,68319.0,0.40702784]
[1729407485432,1.26501661,68320.0,68319.0,0.4941973]
[1729407485433,1.25235192,68320.0,68319.0,0.4941973]
[1729407485671,1.25235192,68320.0,68319.0,0.40702784]
[1729407485907,1.25235192,68320.0,68319.0,0.49431074]
[1729407486597,1.25235192,68320.0,68319.0,0.40702784]
[1729407487030,1.25235192,68320.0,68319.0,0.49431391]
[1729407487517,1.25235192,68320.0,68319.0,0.51598967]
[1729407488217,1.25235192,68320.0,68319.0,0.40702784]
[1729407488447,1.25235192,68320.0,68319.0,0.51613356]
[1729407489828,1.25235192,68320.0,68319.0,0.40702784]
[1729407490302,1.25235192,68320.0,68319.0,0.51613572]
[1729407490521,1.25235192,68320.0,68319.0,0.40702784]
[1729407491915,1.25235192,68320.0,68319.0,0.51614145]
[1729407492368,1.25235192,68320.0,68319.0,0.40702784]
[1729407493501,1.25235192,68320.0,68319.0,0.40902784]
[1729407493760,1.25235192,68320.0,68319.0,0.45450371]
[1729407495352,1.25235192,68320.0,68319.0,0.45250371]
[1729407495577,1.25235192,68320.0,68319.0,0.58343222]
[1729407496261,1.25235192,68320.0,68319.0,0.45250371]
[1729407497182,1.25235192,68320.0,68319.0,0.45450371]
[1729407502906,1.25235192,68320.0,68319.0,0.45250371]
[1729407503132,1.25235192,68320.0,68319.0,0.45450371]
[1729407505236,1.25235192,68320.0,68319.0,0.45250371]
[1729407507048,1.25235192,68320.0,68319.0,0.45450371]
[1729407508452,1.25235192,68320.0,68319.0,0.45250371]
[1729407509818,1.25235192,68320.0,68319.0,0.45450371]
[1729407510282,1.25235192,68320.0,68319.0,0.45250371]
[1729407516268,1.25235192,68320.0,68319.0,0.45450371]
[1729407520581,1.23779625,68320.0,68319.0,0.45450371]
[1729407532409,0.783,68356.0,68319.0,0.15917256]
[1729407532634,0.000826,68389.0,68370.0,0.005]
[1729407532860,0.0941,68388.0,68374.0,0.005]
[1729407533088,0.0941,68388.0,68387.0,0.005]
[1729407534489,0.000826,68389.0,68388.0,0.005]
[1729407534992,0.000826,68389.0,68388.0,0.02737424]
[1729407535231,0.000826,68389.0,68388.0,0.005]
[1729407535660,0.000826,68389.0,68388.0,0.02737413]
[1729407535876,0.000826,68389.0,68388.0,0.005]
[1729407536099,0.000826,68389.0,68388.0,0.02737413]
[1729407536290,0.000826,68389.0,68388.0,0.005]
[1729407536554,0.078026,68389.0,68388.0,0.02737413]
[1729407536782,0.078026,68389.0,68388.0,0.005]
[1729407536996,0.078026,68389.0,68388.0,0.02737413]
[1729407537208,0.078026,68389.0,68388.0,0.005]
[1729407537431,0.078026,68389.0,68388.0,0.02737413]
[1729407544878,0.078026,68389.0,68388.0,0.17633328]
[1729407546648,0.078026,68389.0,68388.0,0.17133328]
[1729407548355,0.07758746,68389.0,68388.0,0.17133328]
[1729407548578,0.07712904,68389.0,68388.0,0.17133328]
[1729407551407,0.17122904,68389.0,68388.0,0.17133328]
[1729407552481,0.17122904,68389.0,68388.0,0.14895915]
[1729407552985,0.17122904,68389.0,68388.0,0.17357094]
[1729407553848,0.17205604,68389.0,68388.0,0.17357094]
[1729407558216,0.17205604,68389.0,68388.0,0.15395915]
[1729407558448,0.17205604,68389.0,68388.0,0.17857275]
[1729407558675,0.17205604,68389.0,68388.0,0.17357275]
[1729407562259,0.12636587,68389.0,68388.0,0.17357275]
[1729407562485,0.12636587,68389.0,68388.0,0.14895915]
[1729407562930,0.12636587,68389.0,68388.0,0.17357275]
[1729407566028,0.12636587,68389.0,68388.0,0.17522475]
[1729407572293,0.12636587,68389.0,68388.0,0.19653679]
[1729407575988,0.12919287,68389.0,68388.0,0.0262656]
[1729407576436,0.12919287,68389.0,68388.0,0.001652]
[1729407578047,0.12919287,68389.0,68388.0,0.0448605]
[1729407578278,0.12919287,68389.0,68388.0,0.0277738]
[1729407578717,0.12919287,68389.0,68388.0,0.0709823]
[1729407579634,0.12919287,68389.0,68388.0,0.0277738]
[1729407581148,0.12919287,68389.0,68388.0,0.17673295]
[1729407582747,0.12919287,68389.0,68388.0,0.22030123]
[1729407584327,0.12919287,68389.0,68388.0,0.17673295]
[1729407587036,0.12636587,68389.0,68388.0,0.17673295]
[1729407587274,0.12919287,68389.0,68388.0,0.17673295]
[1729407592106,0.12636587,68389.0,68388.0,0.17673295]
[1729407592382,0.12919287,68389.0,68388.0,0.17673295]
[1729407594109,0.12919287,68389.0,68388.0,0.0277738]
[1729407594752,0.12919287,68389.0,68388.0,0.001652]
[1729407595434,0.12636587,68389.0,68388.0,0.001652]
[1729407595646,0.12919287,68389.0,68388.0,0.001652]
[1729407596329,0.14211628,68389.0,68388.0,0.001652]
[1729407596953,0.12919287,68389.0,68388.0,0.001652]
[1729407604736,0.12636587,68389.0,68388.0,0.001652]
[1729407604961,0.12919287,68389.0,68388.0,0.001652]
[1729407608576,0.12636587,68389.0,68388.0,0.001652]
[1729407608794,0.12919287,68389.0,68388.0,0.001652]
[1729407613497,0.12636587,68389.0,68388.0,0.001652]
[1729407613711,0.12919287,68389.0,68388.0,0.001652]
[1729407621017,0.12636587,68389.0,68388.0,0.001652]
[1729407621448,0.12919287,68389.0,68388.0,0.001652]
[1729407622528,0.12636587,68389.0,68388.0,0.001652]
[1729407622958,0.12919287,68389.0,68388.0,0.001652]
[1729407623623,0.12636587,68389.0,68388.0,0.001652]
[1729407623840,0.14311628,68389.0,68388.0,0.001652]
[1729407625771,0.12919287,68389.0,68388.0,0.001652]
[1729407626889,0.27541487,68389.0,68388.0,0.001652]
[1729407627113,0.12919287,68389.0,68388.0,0.001652]
[1729407627562,0.27541487,68389.0,68388.0,0.001652]
[1729407630218,0.37916888,68389.0,68388.0,0.001652]
[1729407630476,0.47577579,68389.0,68388.0,0.001652]
[1729407630939,0.47777579,68389.0,68388.0,0.001652]
[1729407631608,0.47577579,68389.0,68388.0,0.001652]
[1729407639296,0.64773494,68389.0,68388.0,0.001652]
[1729407640250,0.64973494,68389.0,68388.0,0.001652]
[1729407640452,0.64773494,68389.0,68388.0,0.001652]
[1729407640678,0.49877579,68389.0,68388.0,0.001652]
[1729407640926,0.47577579,68389.0,68388.0,0.001652]
[1729407642548,0.64973494,68389.0,68388.0,0.001652]
[1729407647326,0.69353171,68389.0,68388.0,0.001652]
[1729407647798,0.64973494,68389.0,68388.0,0.001652]
[1729407648018,0.69351027,68389.0,68388.0,0.001652]
[1729407648448,0.64973494,68389.0,68388.0,0.001652]
[1729407652382,0.64973494,68389.0,68375.0,0.001654]
[1729407652383,0.159077,68376.0,68375.0,0.001654]
[1729407652585,0.28027197,68376.0,68375.0,0.001654]
[1729407653246,0.42652197,68376.0,68375.0,0.001654]
[1729407654280,0.28027197,68376.0,68375.0,0.001654]
[1729407654727,0.26806258,68376.0,68375.0,0.001654]
[1729407655991,0.48499164,68376.0,68375.0,0.001654]
[1729407656201,0.26806258,68376.0,68375.0,0.001654]
[1729407658958,0.41431258,68376.0,68375.0,0.001654]
[1729407659186,0.26806258,68376.0,68375.0,0.001654]
[1729407661520,0.41431258,68376.0,68375.0,0.001654]
[1729407661744,0.26806258,68376.0,68375.0,0.001654]
[1729407661969,0.33874184,68376.0,68375.0,0.001654]
[1729407662434,0.26806258,68376.0,68375.0,0.001654]
[1729407666752,0.16886258,68376.0,68375.0,0.001654]
[1729407666970,0.16892258,68376.0,68375.0,0.001654]
[1729407667849,0.17392258,68376.0,68375.0,0.001654]
[1729407668931,0.16892258,68376.0,68375.0,0.001654]
[1729407669793,0.21041874,68376.0,68375.0,0.001654]
[1729407672545,0.16892258,68376.0,68375.0,0.001654]
[1729407681501,0.16974958,68376.0,68375.0,0.001654]
[1729407695717,0.41299958,68376.0,68375.0,0.001654]
[1729407696172,0.41799958,68376.0,68375.0,0.001654]
[1729407696640,0.41999958,68376.0,68375.0,0.001654]
[1729407696876,0.52288008,68376.0,68375.0,0.001654]
[1729407699027,0.54588008,68376.0,68375.0,0.001654]
[1729407699273,0.5897385,68376.0,68375.0,0.001654]
[1729407699505,0.59173298,68376.0,68375.0,0.001654]
[1729407699736,0.58973298,68376.0,68375.0,0.001654]
[1729407701315,0.76262686,68376.0,68375.0,0.001654]
[1729407701559,0.69683923,68376.0,68375.0,0.001654]
[1729407702735,0.78455608,68376.0,68375.0,0.001654]
[1729407703628,0.69683923,68376.0,68375.0,0.001654]
[1729407704287,0.67767558,68376.0,68375.0,0.001654]
[1729407704511,0.58995873,68376.0,68375.0,0.001654]
[1729407704735,0.63377748,68376.0,68375.0,0.001654]
[1729407705099,0.58995873,68376.0,68375.0,0.001654]
[1729407705472,0.59195873,68376.0,68375.0,0.001654]
[1729407705689,0.77977619,68376.0,68375.0,0.001654]
[1729407705911,0.77777619,68376.0,68375.0,0.001654]
[1729407706762,0.63377282,68376.0,68375.0,0.001654]
[1729407707011,0.58995873,68376.0,68375.0,0.001654]
[1729407707682,0.44099958,68376.0,68375.0,0.001654]
[1729407710258,0.41799958,68376.0,68375.0,0.001654]
[1729407724381,0.41299958,68376.0,68375.0,0.001654]
[1729407725253,0.46740246,68376.0,68375.0,0.001654]
[1729407726335,0.46740246,68376.0,68364.0,0.005]
[1729407726336,0.146259,68372.0,68364.0,0.00443374]
[1729407726549,0.438765,68374.0,68368.0,0.21933512]
[1729407726760,0.146258,68372.0,68364.0,0.00443374]
[1729407726987,0.292504,68375.0,68364.0,0.00443374]
[1729407727218,0.39085214,68375.0,68364.0,0.00443374]
[1729407727435,0.146258,68373.0,68364.0,0.00443374]
[1729407728855,0.39085214,68375.0,68364.0,0.00443374]
[1729407728856,0.146259,68372.0,68364.0,0.00443374]
[1729407729091,0.09834814,68375.0,68364.0,0.00443374]
[1729407729312,0.292508,68374.0,68364.0,0.00443374]
[1729407729529,0.09834814,68375.0,68357.0,0.04804331]
[1729407729530,0.146267,68368.0,68357.0,0.04804331]
[1729407729760,0.146268,68368.0,68362.0,0.21933512]
[1729407729978,0.146265,68369.0,68359.0,0.00443374]
[1729407730199,0.07078727,68368.0,68363.0,0.02177235]
[1729407730434,0.07078727,68368.0,68360.0,0.02178352]
[1729407730435,0.21705427,68368.0,68360.0,0.02178352]
[1729407730663,0.07078727,68368.0,68359.0,0.00443374]
[1729407730901,0.07078727,68368.0,68361.0,0.02177794]
[1729407730902,0.02170513,68367.0,68361.0,0.02177794]
[1729407731143,0.07078727,68368.0,68360.0,0.02178073]
[1729407731370,0.07078727,68368.0,68362.0,0.02177235]
[1729407731584,0.07078727,68368.0,68363.0,0.02177235]
[1729407731802,0.07078727,68368.0,68359.0,0.00443374]
[1729407732052,0.02170543,68367.0,68364.0,0.02176956]
[1729407732284,0.07078727,68368.0,68359.0,0.00443374]
[1729407732515,0.21705527,68368.0,68359.0,0.00443374]
[1729407732724,0.21705527,68368.0,68360.0,0.02178073]
[1729407733196,0.07078727,68368.0,68360.0,0.02178073]
[1729407733411,0.05095803,68367.0,68360.0,0.02178073]
[1729407733814,0.07078727,68368.0,68360.0,0.02178073]
[1729407734497,0.21705427,68368.0,68360.0,0.02178073]
[1729407734710,0.07078727,68368.0,68360.0,0.02178073]
[1729407738578,0.1657,68367.0,68360.0,0.02178073]
[1729407738820,0.1657,68367.0,68358.0,0.00443374]
[1729407739045,0.20397503,68367.0,68361.0,0.02177724]
[1729407739270,0.20397503,68367.0,68357.0,0.15339289]
[1729407739522,0.20397503,68367.0,68362.0,0.02177444]
[1729407739780,0.1657,68367.0,68359.0,0.00443374]
[1729407740026,0.1657,68367.0,68363.0,0.02177165]
[1729407740266,0.1657,68367.0,68360.0,0.02178003]
[1729407740505,0.1657,68367.0,68364.0,0.02176886]
[1729407740723,0.1657,68367.0,68360.0,0.001656]
[1729407741155,0.1657,68367.0,68361.0,0.02177724]
[1729407742659,0.21891241,68367.0,68361.0,0.02177724]
[1729407753222,0.1657,68367.0,68361.0,0.02177724]
[1729407756748,0.1657,68367.0,68361.0,0.06544323]
[1729407756954,0.1657,68367.0,68361.0,0.02177724]
[1729407765671,0.1657,68367.0,68361.0,0.02343324]
[1729407770148,0.0991,68366.0,68361.0,0.02343324]
[1729407771229,0.0321493,68365.0,68361.0,0.02343324]
[1729407771472,0.0991,68363.0,68361.0,0.02343324]
[1729407771687,0.245378,68363.0,68361.0,0.02343324]
[1729407772081,0.32518,68362.0,68361.0,0.02343324]
[1729407772361,0.1789,68362.0,68361.0,0.02343324]
[1729407772583,0.1789,68362.0,68361.0,0.001656]
[1729407772816,0.32518,68362.0,68361.0,0.0234267]
[1729407773027,0.32518,68362.0,68361.0,0.001656]
[1729407773287,0.1789,68362.0,68361.0,0.001656]
[1729407773942,0.38720833,68362.0,68361.0,0.001656]
[1729407774416,0.24092833,68362.0,68361.0,0.001656]
[1729407774649,0.38720833,68362.0,68361.0,0.001656]
[1729407774896,0.38777459,68362.0,68361.0,0.001656]
[1729407775571,0.24149459,68362.0,68361.0,0.001656]
[1729407776908,0.17946626,68362.0,68361.0,0.001656]
[1729407781818,0.27867749,68362.0,68361.0,0.001656]
[1729407782538,0.42495749,68362.0,68361.0,0.001656]
[1729407782772,0.27867749,68362.0,68361.0,0.001656]
[1729407783219,0.42495749,68362.0,68361.0,0.001656]
[1729407784135,0.53113097,68362.0,68361.0,0.001656]
[1729407791623,0.27867749,68362.0,68361.0,0.001656]
[1729407794472,0.42495749,68362.0,68361.0,0.001656]
[1729407795153,0.42695749,68362.0,68361.0,0.001656]
[1729407805315,0.59891664,68362.0,68361.0,0.001656]
[1729407830878,0.27867749,68362.0,68361.0,0.001656]
[1729407831993,0.28067749,68362.0,68361.0,0.001656]
[1729407833408,0.32454046,68362.0,68361.0,0.001656]
[1729407833624,0.47082046,68362.0,68361.0,0.001656]
[1729407834103,0.42695749,68362.0,68361.0,0.001656]
[1729407834795,0.47082482,68362.0,68361.0,0.001656]
[1729407835943,0.42695749,68362.0,68361.0,0.001656]
[1729407837023,0.54856836,68362.0,68361.0,0.001656]
[1729407847770,0.59243866,68362.0,68361.0,0.001656]
[1729407848220,0.54856836,68362.0,68361.0,0.001656]
[1729407848440,0.59243866,68362.0,68361.0,0.001656]
[1729407848692,0.54856836,68362.0,68361.0,0.001656]
[1729407849571,0.59243603,68362.0,68361.0,0.001656]
[1729407853071,0.76439518,68362.0,68361.0,0.001656]
[1729407854216,0.76439696,68362.0,68361.0,0.001656]
[1729407854432,0.72052751,68362.0,68361.0,0.001656]
[1729407854649,0.7643976,68362.0,68361.0,0.001656]
[1729407857732,0.76439894,68362.0,68361.0,0.001656]
[1729407866578,0.32198266,68362.0,68361.0,0.001656]
[1729407866811,0.32254892,68362.0,68361.0,0.001656]
[1729407867041,0.32198266,68362.0,68361.0,0.001656]
[1729407867204,0.32254892,68362.0,68361.0,0.001656]
[1729407869262,0.24218266,68362.0,68361.0,0.001656]
[1729407869999,0.34495721,68362.0,68361.0,0.001656]
[1729407872161,0.34496297,68362.0,68361.0,0.001656]
[1729407873058,0.49124297,68362.0,68361.0,0.001656]
[1729407877228,0.49124439,68362.0,68361.0,0.001656]
[1729407881888,0.49124461,68362.0,68361.0,0.001656]
[1729407886801,0.49124562,68362.0,68361.0,0.001656]
[1729407890633,0.49181188,68362.0,68361.0,0.001656]
[1729407890857,0.56751188,68362.0,68361.0,0.001656]
[1729407891087,0.58945181,68362.0,68361.0,0.001656]
[1729407891555,0.52363204,68362.0,68361.0,0.001656]
[1729407893448,0.58945878,68362.0,68361.0,0.001656]
[1729407894607,0.76141793,68362.0,68361.0,0.001656]
[1729407896454,0.76141847,68362.0,68361.0,0.001656]
[1729407900313,0.59281664,68362.0,68361.0,0.001656]
[1729407900745,0.63670012,68362.0,68361.0,0.001656]
[1729407901188,0.31789471,68362.0,68361.0,0.001656]
[1729407903493,0.46417471,68362.0,68361.0,0.001656]
[1729407904678,0.46417526,68362.0,68361.0,0.001656]
[1729407905130,0.59635483,68362.0,68361.0,0.001656]
[1729407909369,0.59635494,68362.0,68361.0,0.001656]
[1729407914483,0.59635495,68362.0,68361.0,0.001656]
[1729407919493,0.59635508,68362.0,68361.0,0.001656]
[1729407924891,0.45007508,68362.0,68361.0,0.001656]
[1729407925112,0.46417551,68362.0,68361.0,0.001656]
[1729407927786,0.46474177,68362.0,68361.0,0.001656]
[1729407929064,0.46474111,68362.0,68361.0,0.001656]
[1729407930590,0.42085749,68362.0,68361.0,0.001656]
[1729407931026,0.46474111,68362.0,68361.0,0.001656]
[1729407931451,0.58524949,68362.0,68361.0,0.001656]
[1729407931671,0.54136587,68362.0,68361.0,0.001656]
[1729407931884,0.58524949,68362.0,68361.0,0.001656]
[1729407932330,0.46474111,68362.0,68361.0,0.001656]
[1729407932561,0.42085749,68362.0,68361.0,0.001656]
[1729407936842,0.42029123,68362.0,68361.0,0.001656]
[1729407940408,0.42085749,68362.0,68361.0,0.001656]
[1729407942192,0.46473811,68362.0,68361.0,0.001656]
[1729407942401,0.42085749,68362.0,68361.0,0.001656]
[1729407942607,0.46473873,68362.0,68361.0,0.001656]
[1729407942815,0.4647378,68362.0,68361.0,0.001656]
[1729407943021,0.42085749,68362.0,68361.0,0.001656]
[1729407943236,0.4647378,68362.0,68361.0,0.001656]
[1729407945212,0.561236,68362.0,68361.0,0.001656]
[1729407947450,0.4647378,68362.0,68361.0,0.001656]
[1729407947672,0.42085749,68362.0,68361.0,0.001656]
[1729407947881,0.27401123,68362.0,68361.0,0.001656]
[1729407952035,0.42029123,68362.0,68361.0,0.001656]
[1729407968360,0.42229123,68362.0,68361.0,0.001656]
[1729407970240,0.53033354,68362.0,68361.0,0.001656]
[1729407971113,0.42229123,68362.0,68361.0,0.001656]
[1729407972403,0.42285749,68362.0,68361.0,0.001656]
[1729407975930,0.42085749,68362.0,68361.0,0.001656]
[1729407980030,0.46473798,68362.0,68361.0,0.001656]
[1729407980450,0.42085749,68362.0,68361.0,0.001656]
[1729407981102,0.54206383,68362.0,68361.0,0.001656]
[1729407981534,0.42085749,68362.0,68361.0,0.001656]
[1729407983946,0.27457749,68362.0,68361.0,0.001656]
[1729407984154,0.42085749,68362.0,68361.0,0.001656]
[1729408008691,0.4647396,68362.0,68361.0,0.001656]
[1729408015748,0.42085749,68362.0,68361.0,0.001656]
[1729408017496,0.4647396,68362.0,68361.0,0.001656]
[1729408017954,0.42085749,68362.0,68361.0,0.001656]
[1729408018159,0.4647396,68362.0,68361.0,0.001656]
[1729408020638,0.46474244,68362.0,68361.0,0.001656]
[1729408021957,0.42085749,68362.0,68361.0,0.001656]
[1729408022162,0.46474443,68362.0,68361.0,0.001656]
[1729408023227,0.42085749,68362.0,68361.0,0.001656]
[1729408024267,0.46474447,68362.0,68361.0,0.001656]
[1729408024681,0.46474405,68362.0,68361.0,0.001656]
[1729408029615,0.46474412,68362.0,68361.0,0.001656]
[1729408032848,0.46474507,68362.0,68361.0,0.001656]
[1729408033308,0.241983,68361.0,68353.0,0.000724]
[1729408033510,0.241983,68361.0,68354.0,0.00582389]
[1729408033676,0.241983,68361.0,68355.0,0.00582389]
[1729408033888,0.241983,68361.0,68356.0,0.00582389]
[1729408034105,0.241983,68361.0,68353.0,0.000724]
[1729408034311,0.241983,68361.0,68354.0,0.00582423]
[1729408034511,0.241983,68361.0,68355.0,0.00582423]
[1729408034710,0.241983,68361.0,68356.0,0.00582423]
[1729408035001,0.241983,68361.0,68353.0,0.000724]
[1729408035208,0.241983,68361.0,68354.0,0.00582408]
[1729408035451,0.241983,68361.0,68355.0,0.00582429]
[1729408035674,0.241983,68361.0,68356.0,0.00582429]
[1729408035890,0.241983,68361.0,68353.0,0.000724]
[1729408036106,0.146283,68361.0,68354.0,0.0058241]
[1729408036315,0.0957,68360.0,68355.0,0.0058241]
[1729408036506,0.0957,68360.0,68356.0,0.0058241]
[1729408036767,0.0957,68360.0,68353.0,0.000724]
[1729408036990,0.0957,68360.0,68354.0,0.00582438]
[1729408037116,0.0957,68360.0,68355.0,0.00582438]
[1729408037315,0.0957,68360.0,68356.0,0.00582438]
[1729408037540,0.07738123,68359.0,68353.0,0.000724]
[1729408037747,0.0957,68360.0,68354.0,0.00582417]
[1729408037957,0.241985,68360.0,68355.0,0.00582417]
[1729408038157,0.241985,68360.0,68356.0,0.00582417]
[1729408038367,0.146285,68360.0,68353.0,0.000724]
[1729408038576,0.0802,68356.0,68354.0,0.00582418]
[1729408038827,0.0802,68356.0,68355.0,0.00582418]
[1729408039244,0.0802,68356.0,68353.0,0.000724]
[1729408039462,0.0802,68356.0,68354.0,0.00582453]
[1729408039628,0.0802,68356.0,68355.0,0.00582453]
[1729408042746,0.0802,68356.0,68355.0,0.00582454]
[1729408046437,0.0802,68356.0,68353.0,0.000724]
[1729408046653,0.0802,68356.0,68355.0,0.00582469]
[1729408047150,0.0802,68356.0,68355.0,0.03094437]
[1729408047615,0.07969612,68356.0,68355.0,0.03094437]
[1729408050064,0.07969612,68356.0,68355.0,0.03094463]
[1729408060544,0.07969612,68356.0,68355.0,0.0309445]
[1729408062824,0.07969612,68356.0,68355.0,0.0325985]
[1729408063249,0.08052312,68356.0,68355.0,0.0325985]
[1729408065193,0.08052312,68356.0,68355.0,0.03259835]
[1729408068442,0.08052312,68356.0,68355.0,0.02677368]
[1729408068650,0.08052312,68356.0,68355.0,0.03259826]
[1729408072330,0.08052312,68356.0,68355.0,0.03259819]
[1729408073124,0.17332312,68356.0,68355.0,0.03259819]
[1729408076418,0.17332312,68356.0,68355.0,0.03259818]
[1729408081901,0.17332312,68356.0,68355.0,0.03259813]
[1729408083282,0.093627,68356.0,68355.0,0.03259813]
[1729408092722,0.172027,68356.0,68355.0,0.03259813]
[1729408104969,0.172027,68356.0,68355.0,0.02677368]
[1729408105181,0.172027,68356.0,68355.0,0.03259711]
[1729408109213,0.172027,68356.0,68355.0,0.0325992]
[1729408111581,0.172027,68356.0,68355.0,0.00747952]
[1729408112775,0.172027,68356.0,68355.0,0.00747962]
[1729408115120,0.172027,68356.0,68355.0,0.03205946]
[1729408115564,0.172027,68356.0,68355.0,0.00747962]
[1729408115775,0.172027,68356.0,68355.0,0.03205946]
[1729408115998,0.172027,68356.0,68355.0,0.00747962]
[1729408116204,0.172027,68356.0,68355.0,0.03205946]
[1729408116415,0.172027,68356.0,68355.0,0.00747962]
[1729408116649,0.172027,68356.0,68355.0,0.03205946]
[1729408116908,0.172027,68356.0,68355.0,0.00747962]
[1729408117350,0.172027,68356.0,68355.0,0.03205926]
[1729408118876,0.172027,68356.0,68355.0,0.00747962]
[1729408125695,0.172027,68356.0,68355.0,0.03205974]
[1729408126872,0.172027,68356.0,68355.0,0.00747962]
[1729408127370,0.172027,68356.0,68355.0,0.03205974]
[1729408127616,0.172027,68356.0,68355.0,0.00747962]
[1729408127838,0.172027,68356.0,68355.0,0.03205974]
[1729408128095,0.172027,68356.0,68355.0,0.00747962]
[1729408128590,0.172027,68356.0,68355.0,0.03205974]
[1729408128831,0.172027,68356.0,68355.0,0.00747962]
[1729408130721,0.172027,68356.0,68355.0,0.03205974]
[1729408130972,0.172027,68356.0,68355.0,0.00747962]
[1729408133137,0.172027,68356.0,68355.0,0.03205974]
[1729408133363,0.172027,68356.0,68355.0,0.00747962]
[1729408133616,0.172027,68356.0,68355.0,0.03205974]
[1729408133842,0.172027,68356.0,68355.0,0.00747962]
[1729408134077,0.172027,68356.0,68355.0,0.03205974]
[1729408141888,0.172027,68356.0,68355.0,0.02623412]
[1729408142123,0.172027,68356.0,68355.0,0.03205996]
[1729408142603,0.093627,68356.0,68355.0,0.03205996]
[1729408142822,0.093627,68356.0,68355.0,0.1983786]
[1729408142823,0.000827,68356.0,68355.0,0.1983786]
[1729408143871,0.000827,68356.0,68355.0,0.19837193]
[1729408144492,0.000827,68356.0,68355.0,0.30464567]
[1729408144699,0.000827,68356.0,68355.0,0.19544618]
[1729408144900,0.000827,68356.0,68355.0,0.30464567]
[1729408145545,0.000827,68356.0,68355.0,0.28276049]
[1729408146908,0.000827,68356.0,68355.0,0.30389015]
[1729408147615,0.000827,68356.0,68355.0,0.21657584]
[1729408149062,0.000827,68356.0,68355.0,0.21075667]
[1729408149292,0.000827,68356.0,68355.0,0.21656913]
[1729408149697,0.000827,68356.0,68355.0,0.28201323]
[1729408150318,0.000827,68356.0,68355.0,0.21656913]
[1729408151661,0.000827,68356.0,68355.0,0.26019273]
[1729408152849,0.000827,68356.0,68355.0,0.25438027]
[1729408153088,0.000827,68356.0,68355.0,0.260191]
[1729408153314,0.000827,68356.0,68355.0,0.26018768]
[1729408155624,0.000827,68356.0,68355.0,0.2165674]
[1729408156833,0.000827,68356.0,68355.0,0.21656702]
[1729408159751,0.000827,68356.0,68355.0,0.26017291]
[1729408160407,0.000827,68356.0,68355.0,0.25436256]
[1729408160612,0.000827,68356.0,68355.0,0.26017355]
[1729408163433,0.000827,68356.0,68355.0,0.26309895]
[1729408164288,0.000827,68356.0,68355.0,0.26308837]
[1729408164501,0.000827,68356.0,68355.0,0.26308894]
[1729408167842,0.000827,68356.0,68355.0,0.21949472]
[1729408168273,0.000827,68356.0,68355.0,0.21656932]
[1729408168482,0.000827,68356.0,68355.0,0.28197816]
[1729408168687,0.000827,68356.0,68355.0,0.21656932]
[1729408175645,0.000827,68356.0,68355.0,0.28197816]
[1729408175880,0.000827,68356.0,68355.0,0.28491408]
[1729408176090,0.000827,68356.0,68355.0,0.28198873]
[1729408176296,0.000827,68356.0,68355.0,0.28491409]
[1729408177387,0.000827,68356.0,68355.0,0.28198873]
[1729408179015,0.000827,68356.0,68355.0,0.28491409]
[1729408179412,0.000827,68356.0,68355.0,0.21368203]
[1729408179613,0.000827,68356.0,68355.0,0.21950531]
[1729408181426,0.000827,68356.0,68355.0,0.3067171]
[1729408181631,0.000827,68356.0,68355.0,0.30379174]
[1729408182024,0.000827,68356.0,68355.0,0.21657995]
[1729408182433,0.000827,68356.0,68355.0,0.32559469]
[1729408183446,0.000827,68356.0,68355.0,0.21657995]
[1729408187091,0.000827,68356.0,68355.0,0.21657952]
[1729408187524,0.000827,68356.0,68355.0,0.21657971]
[1729408187932,0.000827,68356.0,68355.0,0.2165797]
[1729408191067,0.000827,68356.0,68355.0,0.21658001]
[1729408194043,0.000827,68356.0,68355.0,0.22950536]
[1729408194882,0.000827,68356.0,68355.0,0.22950505]
[1729408195305,0.000827,68356.0,68355.0,0.22950503]
[1729408197240,0.000827,68356.0,68355.0,0.2265797]
[1729408198469,0.000827,68356.0,68355.0,0.22075667]
[1729408198652,0.000827,68356.0,68355.0,0.22657971]
[1729408198868,0.000827,68356.0,68355.0,0.22657978]
[1729408201156,0.000827,68356.0,68355.0,0.22657976]
[1729408203487,0.000827,68356.0,68355.0,0.22950514]
[1729408203894,0.000827,68356.0,68355.0,0.2295053]
[1729408207017,0.000827,68356.0,68355.0,0.24957992]
[1729408207229,0.000827,68356.0,68355.0,0.25157992]
[1729408207449,0.000827,68356.0,68355.0,0.29708463]
[1729408207857,0.000827,68356.0,68355.0,0.49052471]
[1729408208292,1e-06,68360.0,68359.0,0.04943374]
[1729408208558,1e-06,68360.0,68359.0,0.24972085]
[1729408208949,1e-06,68360.0,68359.0,0.27403705]
[1729408209153,1e-06,68360.0,68359.0,0.2682138]
[1729408209358,1e-06,68360.0,68359.0,0.27404765]
[1729408209773,1e-06,68367.0,68366.0,0.04943374]
[1729408209983,1e-06,68367.0,68366.0,0.33508637]
[1729408210187,1e-06,68367.0,68366.0,0.22851843]
[1729408210393,1e-06,68367.0,68366.0,0.27394426]
[1729408210606,1e-06,68367.0,68366.0,0.26981843]
[1729408210819,0.0998,68377.0,68367.0,0.02443374]
[1729408210820,1e-06,68368.0,68367.0,0.02443374]
[1729408211056,1e-06,68368.0,68367.0,0.20222674]
[1729408211240,1e-06,68368.0,68367.0,0.22850742]
[1729408211448,1e-06,68368.0,68367.0,0.27390168]
[1729408211657,1e-06,68376.0,68375.0,0.02443374]
[1729408211886,1e-06,68376.0,68375.0,0.20422674]